bitfinex/quotes_BTCUSD_20250406
["timestamp","ask_amount","ask_price","bid_price","bid_amount"]
[1743962395094,0.00645623,80808.0,80807.0,0.20649418]
[1743962395302,0.00645623,80808.0,80805.0,1.07036]
[1743962395963,0.00045623,80808.0,80806.0,0.12290297]
[1743962396308,0.00645623,80808.0,80806.0,0.1253778]
[1743962396513,0.00645623,80808.0,80806.0,0.12290297]
[1743962396719,0.00645623,80808.0,80807.0,0.1193263]
[1743962396874,0.00045623,80808.0,80807.0,0.24222927]
[1743962397085,0.00645623,80808.0,80807.0,0.24222927]
[1743962397489,0.00645623,80808.0,80807.0,0.1193263]
[1743962397663,0.00045623,80808.0,80807.0,0.1193263]
[1743962397865,0.00645623,80808.0,80807.0,0.1193263]
[1743962398528,0.00645623,80808.0,80805.0,1.07036]
[1743962399500,0.00045623,80808.0,80805.0,1.07036]
[1743962400116,0.00645623,80808.0,80805.0,1.07036]
[1743962400319,0.00645623,80808.0,80805.0,1.12002]
[1743962400533,0.00045623,80808.0,80805.0,1.12002]
[1743962400748,0.34,80816.0,80805.0,1.12002]
[1743962400958,0.34,80806.0,80805.0,0.05004557]
[1743962401163,0.34,80806.0,80778.0,0.90356]
[1743962401164,3.90153197,80806.0,80778.0,0.90356]
[1743962401369,0.34,80787.0,80778.0,0.90356]
[1743962401577,0.34,80787.0,80778.0,0.95675647]
[1743962401578,0.34,80785.0,80778.0,0.95675647]
[1743962401790,0.15,80781.0,80778.0,0.86640047]
[1743962401995,2.39593464,80780.0,80778.0,0.86640047]
[1743962402206,0.530806,80779.0,80778.0,0.86640047]
[1743962402415,0.34,80768.0,80758.0,0.00045623]
[1743962402621,0.34,80766.0,80758.0,0.00045623]
[1743962402828,0.34,80764.0,80758.0,0.00045623]
[1743962403037,0.34,80762.0,80758.0,0.00045623]
[1743962403284,0.49,80759.0,80758.0,0.00045623]
[1743962403489,2.56405531,80759.0,80758.0,0.00045623]
[1743962403713,3.47591731,80759.0,80758.0,0.00045623]
[1743962403920,1.71282431,80759.0,80758.0,0.00045623]
[1743962404141,1.91478431,80759.0,80758.0,0.00045623]
[1743962404348,1.33180931,80759.0,80758.0,0.00045623]
[1743962404557,1.07702475,80759.0,80758.0,0.00027408]
[1743962405185,1.00073175,80759.0,80758.0,0.00027408]
[1743962406520,1.0202726,80759.0,80758.0,0.00027408]
[1743962406728,0.34,80738.0,80726.0,1.06988]
[1743962406980,0.34,80736.0,80726.0,1.06988]
[1743962407183,0.34,80734.0,80726.0,1.06988]
[1743962407391,0.34,80732.0,80729.0,0.57535923]
[1743962407618,0.34,80730.0,80729.0,0.57535923]
[1743962407820,0.50006388,80730.0,80729.0,0.57535923]
[1743962408039,0.38834435,80730.0,80729.0,0.69825691]
[1743962408285,0.59026435,80730.0,80729.0,0.69825691]
[1743962408498,0.61263369,80730.0,80729.0,0.69839315]
[1743962408918,0.61263369,80730.0,80729.0,0.57549547]
[1743962409135,1.95292666,80730.0,80729.0,0.56953547]
[1743962409341,0.73553666,80730.0,80729.0,0.56953547]
[1743962409567,0.73553666,80730.0,80729.0,0.61953547]
[1743962409787,0.53361666,80730.0,80729.0,0.61953547]
[1743962409993,0.61259369,80730.0,80729.0,0.74243315]
[1743962410426,0.61259369,80730.0,80729.0,0.61953547]
[1743962410861,0.61759369,80730.0,80729.0,0.61953547]
[1743962411055,0.61759369,80730.0,80729.0,0.61357547]
[1743962411358,0.74049666,80730.0,80729.0,0.61357547]
[1743962411559,0.92255066,80730.0,80729.0,0.61357547]
[1743962411763,1.08164966,80730.0,80729.0,0.61357547]
[1743962412861,0.90330966,80730.0,80729.0,0.61357547]
[1743962413061,0.85333066,80730.0,80729.0,0.61357547]
[1743962413266,0.91008566,80730.0,80729.0,0.61357547]
[1743962416226,3.03268866,80730.0,80729.0,0.61357547]
[1743962416787,0.86322166,80730.0,80729.0,0.61357547]
[1743962416993,0.61747369,80730.0,80729.0,0.61357547]
[1743962417418,0.07571369,80730.0,80729.0,0.61357547]
[1743962417626,0.27747369,80730.0,80729.0,0.61357547]
[1743962417869,0.27747369,80730.0,80729.0,0.74872195]
[1743962417870,0.07571369,80730.0,80729.0,0.74872195]
[1743962418077,0.07571369,80730.0,80729.0,0.87161963]
[1743962418431,0.02891369,80730.0,80729.0,0.96911963]
[1743962418856,0.005,80730.0,80729.0,0.96911963]
[1743962419759,0.20176,80738.0,80729.0,0.96911963]
[1743962419958,0.005,80730.0,80729.0,0.84621666]
[1743962420201,0.005,80730.0,80729.0,0.96911963]
[1743962420402,0.34,80741.0,80729.0,0.96911963]
[1743962420555,0.34,80741.0,80730.0,0.24580065]
[1743962420754,0.0223641,80740.0,80730.0,0.20863974]
[1743962421383,0.0223641,80740.0,80731.0,0.13744382]
[1743962421596,0.0223641,80740.0,80739.0,0.13744382]
[1743962421756,0.20168,80761.0,80746.0,0.025]
[1743962421955,0.20164,80768.0,80747.0,0.18162147]
[1743962422264,0.10753415,80763.0,80747.0,0.18162147]
[1743962422445,0.10753415,80763.0,80749.0,0.12290297]
[1743962422650,0.10753415,80763.0,80749.0,0.13514648]
[1743962423893,0.11253415,80763.0,80749.0,0.13514648]
[1743962424300,0.3,80755.0,80750.0,0.0266665]
[1743962424502,0.3,80755.0,80751.0,0.12290297]
[1743962426052,0.34,80754.0,80749.0,0.01224351]
[1743962426819,0.00134467,80753.0,80749.0,0.01224351]
[1743962427125,0.00134467,80753.0,80735.0,0.0247826]
[1743962427367,0.00134467,80753.0,80736.0,0.01583194]
[1743962427920,0.34,80749.0,80736.0,0.01583194]
[1743962428126,0.34,80749.0,80729.0,0.61357547]
[1743962428127,0.34,80747.0,80729.0,0.61357547]
[1743962428240,0.39426318,80741.0,80729.0,0.61357547]
[1743962428440,0.34,80739.0,80729.0,0.61357547]
[1743962428656,0.00134467,80738.0,80729.0,0.61357547]
[1743962428888,0.34,80735.0,80729.0,0.61357547]
[1743962429085,0.34,80733.0,80729.0,0.61357547]
[1743962429293,0.34,80731.0,80729.0,0.61357547]
[1743962429686,1.18401164,80730.0,80729.0,0.61357547]
[1743962429893,1.09246897,80730.0,80729.0,0.61357547]
[1743962430202,0.46290297,80730.0,80729.0,0.61195444]
[1743962431129,0.46290297,80730.0,80729.0,0.60575866]
[1743962431130,0.75303783,80730.0,80729.0,0.60575866]
[1743962431830,0.74803783,80730.0,80729.0,0.60575866]
[1743962432063,0.35127086,80730.0,80729.0,0.60575866]
[1743962432276,0.35127086,80730.0,80729.0,0.60428981]
[1743962432490,0.35127086,80730.0,80729.0,0.59499658]
[1743962432955,0.35127086,80730.0,80729.0,0.71789426]
[1743962433196,0.35127086,80730.0,80729.0,0.59499658]
[1743962433428,0.51133474,80730.0,80729.0,0.59499658]
[1743962433630,0.76443274,80730.0,80729.0,0.59499658]
[1743962433822,0.67852908,80730.0,80729.0,0.59499658]
[1743962434136,0.87492908,80730.0,80729.0,0.59499658]
[1743962434336,0.61738211,80730.0,80729.0,0.71789426]
[1743962434544,0.41598211,80730.0,80729.0,0.71643962]
[1743962434744,0.61234211,80730.0,80729.0,0.71643962]
[1743962434959,0.41098211,80730.0,80729.0,0.61643962]
[1743962435137,0.61234211,80730.0,80729.0,0.61643962]
[1743962435339,0.61734211,80730.0,80729.0,0.6059635]
[1743962435571,0.61734211,80730.0,80729.0,0.60453656]
[1743962436133,0.61734211,80730.0,80729.0,0.48163888]
[1743962436333,0.61234211,80730.0,80729.0,0.48163888]
[1743962436557,0.61234211,80730.0,80729.0,0.47953157]
[1743962436754,0.61734211,80730.0,80729.0,0.47953157]
[1743962437392,0.61234211,80730.0,80729.0,0.47953157]
[1743962437569,0.61734211,80730.0,80729.0,0.47953157]
[1743962437769,0.61734211,80730.0,80729.0,0.56670308]
[1743962437999,0.61734211,80730.0,80729.0,0.47953157]
[1743962438204,0.73524508,80730.0,80729.0,0.47953157]
[1743962438404,1.17350088,80730.0,80729.0,0.47953157]
[1743962438556,1.17350088,80730.0,80729.0,0.47703334]
[1743962438779,1.21108368,80730.0,80729.0,0.47703334]
[1743962438966,0.65026371,80730.0,80729.0,0.47703334]
[1743962439164,0.61268091,80730.0,80729.0,0.47703334]
[1743962439726,0.61768091,80730.0,80729.0,0.47703334]
[1743962440472,0.07632091,80730.0,80729.0,0.4745425]
[1743962440677,0.07632091,80730.0,80729.0,0.59744018]
[1743962440678,0.27760091,80730.0,80729.0,0.59744018]
[1743962440906,0.61760091,80730.0,80729.0,0.59744018]
[1743962441460,0.07632091,80730.0,80729.0,0.7189183]
[1743962441752,0.07632091,80730.0,80729.0,0.7671183]
[1743962441954,0.07632091,80730.0,80729.0,0.47311765]
[1743962442577,0.07132091,80730.0,80729.0,0.47311765]
[1743962442989,0.07632091,80730.0,80729.0,0.47311765]
[1743962443239,0.07766558,80730.0,80729.0,0.47311765]
[1743962443453,0.07266558,80730.0,80729.0,0.47311765]
[1743962443675,0.07266558,80730.0,80729.0,0.47177393]
[1743962443966,0.18528995,80730.0,80729.0,0.47177393]
[1743962444189,0.67662142,80730.0,80729.0,0.47177393]
[1743962444432,0.55652042,80730.0,80729.0,0.47177393]
[1743962444661,0.56152042,80730.0,80729.0,0.47177393]
[1743962444898,1.03123942,80730.0,80729.0,0.47177393]
[1743962445134,0.64109842,80730.0,80729.0,0.585378]
[1743962445354,0.58103442,80730.0,80729.0,0.46248032]
[1743962445989,0.61771533,80730.0,80729.0,0.46248032]
[1743962446189,0.52425005,80730.0,80729.0,0.46248032]
[1743962446435,0.52425005,80730.0,80729.0,0.45628458]
[1743962447038,0.54201805,80730.0,80729.0,0.45628458]
[1743962447452,0.54263902,80730.0,80729.0,0.45628458]
[1743962447654,0.77417802,80730.0,80729.0,0.45628458]
[1743962447854,0.77424881,80730.0,80729.0,0.45628458]
[1743962449768,0.76924881,80730.0,80729.0,0.45628458]
[1743962450228,0.77424881,80730.0,80729.0,0.45628458]
[1743962451574,0.97562761,80730.0,80729.0,0.45628458]
[1743962451856,0.96062761,80730.0,80729.0,0.45628458]
[1743962453861,1.41572846,80730.0,80729.0,0.45628458]
[1743962454278,1.55102846,80730.0,80729.0,0.45628458]
[1743962454765,1.55102846,80730.0,80725.0,0.0001694]
[1743962454766,0.51996,80726.0,80725.0,0.0001694]
[1743962454974,0.82527896,80726.0,80725.0,0.00030643]
[1743962455191,5.55906396,80726.0,80725.0,0.00030643]
[1743962455732,0.50454085,80714.0,80713.0,1.06156924]
[1743962455939,5.66501896,80714.0,80713.0,1.04969855]
[1743962456144,5.66501896,80714.0,80713.0,0.00013698]
[1743962456349,0.51480085,80710.0,80683.0,1.0706]
[1743962456531,5.25711638,80710.0,80709.0,0.00030624]
[1743962456773,4.86141534,80710.0,80709.0,0.00030624]
[1743962456982,4.21290434,80710.0,80709.0,0.00030624]
[1743962457192,4.43643437,80710.0,80709.0,0.00030624]
[1743962457398,0.51996,80699.0,80698.0,0.18170624]
[1743962457596,5.69497896,80699.0,80698.0,0.18184333]
[1743962457802,5.74338962,80699.0,80698.0,0.15648419]
[1743962458020,5.76595965,80699.0,80698.0,0.12711262]
[1743962458453,0.49,80679.0,80678.0,0.0011543]
[1743962458665,0.49,80679.0,80678.0,0.00129094]
[1743962458666,5.19414038,80679.0,80678.0,0.00129094]
[1743962458867,5.19414038,80679.0,80678.0,0.00030584]
[1743962458868,3.55645289,80679.0,80678.0,0.00030584]
[1743962459076,3.55645289,80679.0,80666.0,28.93459473]
[1743962459077,0.49,80667.0,80666.0,28.93459473]
[1743962459357,1.38085056,80667.0,80666.0,28.93459473]
[1743962459558,1.89994656,80667.0,80666.0,28.93459473]
[1743962459758,1.93379302,80667.0,80666.0,28.93459473]
[1743962460160,1.95803653,80667.0,80666.0,28.93459473]
[1743962460371,1.9833076,80667.0,80666.0,28.93459473]
[1743962460570,1.46927702,80667.0,80666.0,28.93459473]
[1743962461051,1.55049385,80667.0,80666.0,28.93278221]
[1743962461246,1.69100927,80667.0,80666.0,28.93278221]
[1743962461461,1.74124034,80667.0,80666.0,28.93278221]
[1743962461895,2.44124034,80667.0,80666.0,28.93278221]
[1743962462411,2.45363634,80667.0,80666.0,28.86054246]
[1743962462613,1.69641885,80667.0,80666.0,27.43645284]
[1743962462761,1.68402285,80667.0,80666.0,27.43645284]
[1743962462976,1.69641885,80667.0,80666.0,27.43645284]
[1743962463176,1.51011884,80667.0,80666.0,27.43645284]
[1743962463422,1.71103884,80667.0,80666.0,27.08327308]
[1743962463620,1.73725626,80667.0,80666.0,26.81880277]
[1743962463826,1.45806285,80667.0,80666.0,26.76440652]
[1743962464263,1.45806285,80667.0,80666.0,26.76352378]
[1743962464264,1.47505298,80667.0,80666.0,26.76352378]
[1743962464490,1.27001602,80667.0,80666.0,26.76352378]
[1743962464736,1.27001602,80667.0,80666.0,26.76369318]
[1743962464737,1.70728636,80667.0,80666.0,26.76369318]
[1743962464986,1.65565602,80667.0,80666.0,26.76369318]
[1743962465241,1.23505602,80667.0,80666.0,26.76282222]
[1743962465474,0.56226602,80667.0,80666.0,26.76282222]
[1743962465763,2.96909202,80667.0,80666.0,26.76282222]
[1743962466042,0.80964502,80667.0,80666.0,26.76282222]
[1743962466313,0.78120302,80667.0,80666.0,26.76282222]
[1743962467103,0.78616302,80667.0,80666.0,26.76282222]
[1743962467330,0.87039202,80667.0,80666.0,26.76282222]
[1743962467576,1.13062202,80667.0,80666.0,26.76282222]
[1743962467809,1.09531402,80667.0,80666.0,26.76282222]
[1743962468061,1.10031402,80667.0,80666.0,26.76282222]
[1743962468778,1.10031402,80667.0,80666.0,26.8857199]
[1743962468779,0.09340305,80667.0,80666.0,26.8857199]
[1743962469015,0.27171302,80667.0,80666.0,26.8857199]
[1743962469264,0.07405336,80667.0,80666.0,26.9763199]
[1743962469500,0.10705592,80691.0,80666.0,27.09922287]
[1743962469501,0.20088,80678.0,80666.0,27.09922287]
[1743962469757,0.20088,80678.0,80667.0,0.24827952]
[1743962469988,0.34,80677.0,80667.0,0.24580065]
[1743962470248,0.20088,80678.0,80667.0,0.24580065]
[1743962470481,0.10705592,80691.0,80667.0,0.24580065]
[1743962471005,0.005,80678.0,80670.0,0.64338649]
[1743962471240,0.10705592,80700.0,80670.0,0.64338649]
[1743962471241,0.10705592,80700.0,80675.0,0.012395]
[1743962471478,0.10705592,80700.0,80680.0,0.64338649]
[1743962471719,0.10705592,80700.0,80682.0,0.01454085]
[1743962471992,0.10705592,80700.0,80683.0,0.12290297]
[1743962471993,0.34,80699.0,80683.0,0.12290297]
[1743962472248,0.15,80728.0,80695.0,0.173492]
[1743962472495,0.0003388,80730.0,80702.0,0.01454085]
[1743962472748,0.00013706,80725.0,80703.0,0.12290297]
[1743962473005,0.2008,80747.0,80720.0,0.64338649]
[1743962473244,0.15,80744.0,80721.0,0.0492]
[1743962473479,0.2008,80746.0,80722.0,0.00247725]
[1743962473688,0.2008,80746.0,80721.0,0.0492]
[1743962473689,0.005,80728.0,80721.0,0.0492]
[1743962474195,0.00134467,80745.0,80709.0,0.0492]
[1743962474196,0.34,80740.0,80709.0,0.0492]
[1743962474608,0.34,80738.0,80710.0,0.12290297]
[1743962474848,0.34,80738.0,80709.0,0.0492]
[1743962474849,0.005,80744.0,80720.0,0.64338649]
[1743962475089,0.005,80744.0,80730.0,0.64338649]
[1743962475334,0.0003388,80772.0,80746.0,0.012384]
[1743962475575,0.0003388,80772.0,80762.0,0.0485]
[1743962475813,0.0003388,80772.0,80763.0,0.23829162]
[1743962476049,0.0003388,80772.0,80763.0,0.16910297]
[1743962476538,0.00079587,80772.0,80763.0,0.16910297]
[1743962476780,0.00079587,80772.0,80762.0,0.0485]
[1743962477482,0.00079587,80772.0,80750.0,0.0009949]
[1743962477721,0.00134467,80771.0,80749.0,0.01300497]
[1743962477955,0.00134467,80771.0,80747.0,1.07104]
[1743962477956,0.00134467,80771.0,80750.0,0.11578067]
[1743962478191,0.34,80769.0,80750.0,0.11578067]
[1743962478456,0.00134467,80768.0,80750.0,0.11578067]
[1743962478692,0.00134467,80767.0,80750.0,0.11578067]
[1743962478934,0.34,80765.0,80751.0,0.24827724]
[1743962479179,0.34,80765.0,80751.0,0.24580065]
[1743962479387,0.34,80765.0,80751.0,0.12289768]
[1743962480067,0.34,80765.0,80747.0,1.07104]
[1743962480068,0.34,80763.0,80747.0,1.07104]
[1743962480262,0.34,80761.0,80747.0,1.07104]
[1743962480595,0.00134467,80760.0,80747.0,1.07104]
[1743962480812,0.34,80758.0,80747.0,1.07104]
[1743962481031,0.34,80758.0,80748.0,0.23000697]
[1743962481221,0.34,80758.0,80748.0,0.107104]
[1743962481435,0.01112741,80757.0,80747.0,1.07104]
[1743962481770,0.01247208,80757.0,80747.0,1.07104]
[1743962482225,0.00134467,80757.0,80747.0,1.07104]
[1743962482642,0.34,80755.0,80747.0,1.07104]
[1743962482841,0.34,80753.0,80747.0,1.07104]
[1743962483161,0.34,80751.0,80747.0,1.07104]
[1743962483377,0.34,80749.0,80747.0,1.07104]
[1743962483590,0.15,80736.0,80720.0,1.0706]
[1743962483814,1.44853864,80735.0,80720.0,1.0706]
[1743962484005,0.34,80725.0,80720.0,1.0706]
[1743962484207,0.34,80723.0,80720.0,1.0706]
[1743962484407,0.15,80726.0,80720.0,1.0706]
[1743962484613,0.596335,80725.0,80720.0,1.17766]
[1743962484838,0.34,80723.0,80720.0,1.0706]
[1743962485014,0.34,80721.0,80720.0,1.02842367]
[1743962485224,1.24676997,80721.0,80720.0,1.02842367]
[1743962485403,1.52041397,80721.0,80720.0,1.02842367]
[1743962485606,0.34,80707.0,80692.0,1.07052]
[1743962485849,0.15,80708.0,80693.0,0.107052]
[1743962485850,0.34,80705.0,80693.0,0.107052]
[1743962486058,0.34,80703.0,80693.0,0.107052]
[1743962486261,0.00134467,80702.0,80693.0,0.107052]
[1743962486466,0.12290297,80701.0,80693.0,0.107052]
[1743962486681,0.12290297,80701.0,80692.0,1.07052]
[1743962486682,0.00134467,80700.0,80692.0,1.07052]
[1743962486888,0.34,80699.0,80692.0,1.07052]
[1743962487092,0.34,80697.0,80692.0,1.07052]
[1743962487307,0.20048,80698.0,80692.0,1.07052]
[1743962487528,0.20048,80698.0,80693.0,0.10953033]
[1743962487728,0.20048,80698.0,80692.0,1.07052]
[1743962487935,0.34,80697.0,80692.0,1.07052]
[1743962488934,0.01111026,80696.0,80692.0,1.07052]
[1743962490780,0.01111026,80696.0,80692.0,1.0706893]
[1743962490781,0.34,80694.0,80692.0,1.0706893]
[1743962491037,0.01111026,80696.0,80692.0,1.0706893]
[1743962491247,0.20048,80698.0,80693.0,0.10954717]
[1743962491248,0.35111026,80697.0,80693.0,0.10954717]
[1743962491464,0.01111026,80697.0,80693.0,0.23245014]
[1743962491669,0.01111026,80697.0,80694.0,0.0478]
[1743962491795,0.01111026,80697.0,80695.0,0.12538107]
[1743962492000,0.005,80696.0,80695.0,0.12538107]
[1743962492203,0.07086,80751.0,80696.0,0.0469]
[1743962492204,0.20044,80709.0,80696.0,0.0469]
[1743962492401,0.00134467,80726.0,80697.0,0.12290297]
[1743962492402,0.34,80712.0,80697.0,0.12290297]
[1743962493255,0.3,80704.0,80697.0,0.12290297]
[1743962493662,0.3,80704.0,80699.0,0.173484]
[1743962493872,0.005,80712.0,80702.0,0.01454085]
[1743962494061,0.005,80712.0,80703.0,0.20392694]
[1743962494264,0.005,80712.0,80703.0,0.12290297]
[1743962495037,0.34,80721.0,80695.0,0.12289768]
[1743962495250,0.2004,80722.0,80695.0,0.12289768]
[1743962495251,0.00273732,80711.0,80695.0,0.12289768]
[1743962495462,0.005,80704.0,80697.0,0.001]
[1743962495665,0.005,80704.0,80698.0,0.12538071]
[1743962495871,0.00273732,80711.0,80701.0,0.01454085]
[1743962496072,0.00273732,80711.0,80702.0,0.12290297]
[1743962496273,0.00273732,80711.0,80703.0,0.001]
[1743962496487,0.00273732,80711.0,80704.0,0.12290297]
[1743962497098,0.00773732,80711.0,80704.0,0.12290297]
[1743962497361,0.00773732,80711.0,80705.0,0.02522828]
[1743962497562,0.02239312,80715.0,80706.0,0.12290297]
[1743962497914,0.02239312,80724.0,80706.0,0.12290297]
[1743962498120,0.36239312,80724.0,80706.0,0.12290297]
[1743962498470,0.36239312,80724.0,80681.0,0.0489]
[1743962498471,0.34,80719.0,80681.0,0.0489]
[1743962498647,0.005,80711.0,80704.0,0.001]
[1743962498860,0.34,80709.0,80704.0,0.001]
[1743962499071,0.34,80707.0,80684.0,0.00013706]
[1743962499359,0.23214967,80706.0,80684.0,0.00013706]
[1743962499568,0.536065,80705.0,80684.0,0.00013706]
[1743962499882,0.34,80703.0,80684.0,0.00013706]
[1743962500096,0.34,80701.0,80684.0,0.00013706]
[1743962500298,0.34,80699.0,80692.0,1.0716893]
[1743962500430,0.00134467,80698.0,80692.0,1.0716893]
[1743962500635,0.02239312,80697.0,80692.0,1.0716893]
[1743962500841,0.00134467,80696.0,80693.0,0.10716893]
[1743962501059,0.02239312,80695.0,80693.0,0.10716893]
[1743962501220,0.02239312,80695.0,80692.0,1.0716893]
[1743962501424,0.02239312,80695.0,80692.0,1.0706893]
[1743962501630,0.5363,80693.0,80692.0,1.0706893]
[1743962501856,2.99104097,80693.0,80692.0,1.0706893]
[1743962502059,3.06123409,80693.0,80692.0,0.0001693]
[1743962502437,3.51411602,80693.0,80684.0,0.00013706]
[1743962502724,3.51411602,80693.0,80666.0,26.76282222]
[1743962502725,0.34,80669.0,80666.0,26.76282222]
[1743962503028,0.34,80667.0,80666.0,26.76295933]
[1743962503223,2.20844109,80667.0,80666.0,26.76295933]
[1743962503381,2.25624109,80667.0,80666.0,26.76295933]
[1743962503591,1.63592209,80667.0,80666.0,26.76295933]
[1743962503798,1.67318937,80667.0,80666.0,26.6079181]
[1743962504004,1.63592209,80667.0,80666.0,26.6079181]
[1743962504204,1.73552527,80667.0,80666.0,26.5611181]
[1743962504606,1.72493328,80667.0,80666.0,26.5143181]
[1743962504947,1.68213328,80667.0,80666.0,26.3207181]
[1743962505157,2.33437702,80667.0,80666.0,26.2568181]
[1743962505366,2.35400209,80667.0,80666.0,26.2568181]
[1743962505560,2.09970406,80667.0,80666.0,26.2568181]
[1743962505762,0.23782909,80667.0,80666.0,26.2568181]
[1743962505977,0.47786909,80667.0,80666.0,26.2568181]
[1743962506165,0.52403806,80667.0,80666.0,26.2568181]
[1743962506532,0.52703806,80667.0,80666.0,26.2568181]
[1743962506754,0.49313206,80667.0,80666.0,26.2568181]
[1743962506947,1.27369206,80667.0,80666.0,26.2568181]
[1743962507153,1.29323291,80667.0,80666.0,26.2568181]
[1743962507519,1.29023291,80667.0,80666.0,26.2568181]
[1743962507896,1.29423291,80667.0,80666.0,26.2568181]
[1743962508218,6.18754325,80667.0,80666.0,26.2568181]
[1743962508538,6.21243591,80667.0,80666.0,26.2568181]
[1743962508765,5.17156106,80667.0,80666.0,26.2568181]
[1743962508925,5.14727506,80667.0,80666.0,26.2568181]
[1743962509126,2.54282706,80667.0,80666.0,26.2568181]
[1743962509372,2.74314706,80667.0,80666.0,26.2568181]
[1743962509581,2.32754706,80667.0,80666.0,26.2568181]
[1743962509992,1.18898806,80667.0,80666.0,26.2568181]
[1743962510211,1.18898806,80667.0,80666.0,26.28124369]
[1743962510212,1.26636509,80667.0,80666.0,26.28124369]
[1743962510401,0.51073206,80667.0,80666.0,26.2568181]
[1743962510598,0.64202806,80667.0,80666.0,26.2568181]
[1743962510774,0.97802806,80667.0,80666.0,26.2568181]
[1743962511183,0.98302806,80667.0,80666.0,26.2578181]
[1743962511379,0.98302806,80667.0,80666.0,26.30991794]
[1743962511722,0.97802806,80667.0,80666.0,26.2568181]
[1743962512073,0.72882909,80667.0,80666.0,26.2578181]
[1743962512400,0.72382909,80667.0,80666.0,26.2568181]
[1743962513013,1.24868794,80667.0,80666.0,26.2568181]
[1743962514652,1.25368794,80667.0,80666.0,26.2568181]
[1743962514853,1.68382879,80667.0,80666.0,26.2568181]
[1743962515027,1.71049913,80667.0,80666.0,26.2568181]
[1743962515233,1.77259804,80667.0,80666.0,26.24751462]
[1743962515459,1.79958817,80667.0,80666.0,26.24751462]
[1743962515837,1.73045913,80667.0,80666.0,26.24751462]
[1743962516017,1.75744926,80667.0,80666.0,26.24751462]
[1743962516230,1.79958971,80667.0,80666.0,26.24751462]
[1743962516836,1.35049626,80667.0,80666.0,25.52660671]
[1743962517079,1.33023556,80667.0,80666.0,25.49855453]
[1743962517295,2.0673786,80667.0,80666.0,25.05862187]
[1743962517449,2.0673786,80667.0,80666.0,24.8574868]
[1743962517450,5.17413621,80667.0,80666.0,24.8574868]
[1743962517819,6.99304623,80667.0,80666.0,24.8574868]
[1743962518022,5.93108843,80667.0,80666.0,24.8574868]
[1743962518230,5.94824523,80667.0,80666.0,24.8574868]
[1743962518446,5.56679943,80667.0,80666.0,24.8574868]
[1743962518653,5.39647943,80667.0,80666.0,24.8574868]
[1743962518855,5.59701843,80667.0,80666.0,24.8574868]
[1743962519058,1.99110843,80667.0,80666.0,24.8574868]
[1743962519263,7.04057017,80667.0,80666.0,24.8574868]
[1743962519622,7.03557017,80667.0,80666.0,24.33771396]
[1743962520197,1.99610843,80667.0,80666.0,24.33771396]
[1743962520411,2.01826523,80667.0,80666.0,24.33771396]
[1743962520612,6.73486343,80667.0,80666.0,24.33771396]
[1743962520832,6.62241537,80667.0,80666.0,23.93544382]
[1743962521074,5.2705636,80667.0,80666.0,23.93544382]
[1743962521267,5.25843717,80667.0,80666.0,23.27764726]
[1743962521542,5.26825412,80667.0,80666.0,23.22899792]
[1743962521789,2.10863394,80667.0,80666.0,23.22899792]
[1743962522040,2.11363394,80667.0,80666.0,22.41581992]
[1743962522768,2.11363394,80667.0,80666.0,22.23199849]
[1743962523242,2.11363394,80667.0,80666.0,20.06288439]
[1743962523444,2.26554953,80667.0,80666.0,17.79497086]
[1743962523651,2.26554953,80667.0,80666.0,11.40497552]
[1743962523652,1.81631762,80667.0,80666.0,11.40497552]
[1743962523864,1.84285677,80667.0,80666.0,9.26662963]
[1743962524067,1.60502335,80667.0,80666.0,6.69468601]
[1743962524284,1.76002335,80667.0,80666.0,6.69468601]
[1743962524491,1.78177926,80667.0,80666.0,6.69468601]
[1743962524695,1.79841175,80667.0,80666.0,6.69256273]
[1743962525158,1.80341175,80667.0,80666.0,6.69256273]
[1743962525395,1.80341175,80667.0,80666.0,6.45718862]
[1743962525623,1.79841175,80667.0,80666.0,6.24726275]
[1743962525827,1.79841175,80667.0,80666.0,6.24425697]
[1743962526234,1.57051175,80667.0,80666.0,6.24425697]
[1743962526376,1.57551175,80667.0,80666.0,6.23494854]
[1743962526571,1.70601175,80667.0,80666.0,6.23494854]
[1743962526802,1.70601175,80667.0,80666.0,5.96261203]
[1743962527018,1.70601175,80667.0,80666.0,5.70196002]
[1743962527219,1.90330472,80667.0,80666.0,5.17077918]
[1743962527421,1.90330472,80667.0,80666.0,3.93459617]
[1743962527630,2.00330472,80667.0,80666.0,2.84299624]
[1743962527864,2.00330472,80667.0,80666.0,1.69642361]
[1743962528067,1.98154881,80667.0,80666.0,0.79544061]
[1743962528272,3.03195632,80667.0,80666.0,0.27322986]
[1743962528510,3.03195632,80667.0,80653.0,0.0001693]
[1743962528511,0.54496,80654.0,80653.0,0.0001693]
[1743962528643,5.81290382,80654.0,80653.0,0.00062393]
[1743962528843,5.87479571,80654.0,80650.0,0.02]
[1743962529070,0.66500085,80623.0,80622.0,0.34685302]
[1743962529275,1.3781789,80623.0,80622.0,0.34685302]
[1743962530370,1.24813501,80623.0,80622.0,0.34685302]
[1743962530768,1.25929098,80623.0,80622.0,0.34685302]
[1743962531175,6.71263413,80623.0,80622.0,0.34685302]
[1743962531307,6.20232898,80623.0,80622.0,0.34685302]
[1743962532181,6.05713498,80623.0,80622.0,0.34685302]
[1743962532521,5.70436398,80623.0,80622.0,0.34685302]
[1743962533274,5.72913398,80623.0,80622.0,0.34685302]
[1743962533479,5.76625261,80623.0,80622.0,0.34685302]
[1743962533675,5.89675261,80623.0,80622.0,0.34685302]
[1743962533872,1.45667961,80623.0,80622.0,0.34685302]
[1743962534076,1.32617961,80623.0,80622.0,0.34675386]
[1743962534615,5.27190176,80623.0,80622.0,0.34665474]
[1743962534877,3.18974705,80623.0,80622.0,0.34665474]
[1743962535111,3.2268881,80623.0,80622.0,0.34665474]
[1743962535437,3.18974705,80623.0,80622.0,0.34665474]
[1743962535685,3.58145084,80623.0,80622.0,0.34651113]
[1743962535940,3.56190999,80623.0,80622.0,0.34651113]
[1743962536201,3.53713999,80623.0,80622.0,0.28457859]
[1743962536453,3.33697999,80623.0,80622.0,0.28457859]
[1743962536701,3.53709999,80623.0,80622.0,0.28457859]
[1743962536966,3.53709999,80623.0,80622.0,0.28439189]
[1743962537674,3.53709999,80623.0,80622.0,0.2688751]
[1743962537885,3.01616199,80623.0,80622.0,0.2688751]
[1743962538087,2.81608199,80623.0,80622.0,0.2687074]
[1743962538537,2.93425799,80623.0,80622.0,0.2687074]
[1743962538788,2.93925799,80623.0,80622.0,0.2687074]
[1743962539783,2.94412674,80623.0,80622.0,0.2687074]
[1743962540243,2.74404674,80623.0,80622.0,0.2687074]
[1743962540444,2.74404674,80623.0,80622.0,0.3187074]
[1743962540445,2.91919674,80623.0,80622.0,0.3187074]